[Event "*** Titled Tuesday Blitz"]
[Site "Chess.com"]
[Date "2018.09.04"]
[Round "2"]
[White "GHANDEEVAM2003"]
[Black "jacky72"]
[Result "1-0"]
[WhiteElo "2706"]
[BlackElo "2661"]
[TimeControl "180+2"]
[EndTime "13:56:44 PDT"]
[Termination "GHANDEEVAM2003 won by resignation"]

1. d4 {[%clk 0:03:01.9]} 1... Nf6 {[%clk 0:03:00.2]} 2. c4 {[%clk 0:02:58.6]}
2... g6 {[%clk 0:03:01.2]} 3. Nc3 {[%clk 0:02:58.5]} 3... Bg7 {[%clk 0:03:02.4]}
4. e4 {[%clk 0:02:58.8]} 4... d6 {[%clk 0:03:04.3]} 5. Be2 {[%clk 0:02:58.7]}
5... O-O {[%clk 0:03:06.2]} 6. Bg5 {[%clk 0:02:58.8]} 6... Na6 {[%clk
0:03:03.1]} 7. f4 {[%clk 0:02:58.3]} 7... c6 {[%clk 0:03:00]} 8. Bf3 {[%clk
0:02:54.9]} 8... Nc7 {[%clk 0:03:01.2]} 9. Nge2 {[%clk 0:02:51.5]} 9... Bg4
{[%clk 0:02:46]} 10. Bxf6 {[%clk 0:02:22.7]} 10... Bxf3 {[%clk 0:02:46]} 11.
Bxg7 {[%clk 0:02:24]} 11... Bxe2 {[%clk 0:02:46.1]} 12. Qxe2 {[%clk 0:02:25.2]}
12... Kxg7 {[%clk 0:02:48]} 13. O-O {[%clk 0:02:25.4]} 13... Qd7 {[%clk
0:02:49]} 14. Rad1 {[%clk 0:02:20.3]} 14... Kg8 {[%clk 0:02:46.6]} 15. f5 {[%clk
0:02:19.6]} 15... d5 {[%clk 0:02:46.8]} 16. cxd5 {[%clk 0:02:17]} 16... cxd5
{[%clk 0:02:47.8]} 17. e5 {[%clk 0:02:16.7]} 17... gxf5 {[%clk 0:02:43.2]} 18.
Qh5 {[%clk 0:02:16.5]} 18... Kh8 {[%clk 0:02:31.4]} 19. Rxf5 {[%clk 0:01:57.7]}
19... Qe6 {[%clk 0:02:27.5]} 20. Rd3 {[%clk 0:01:46.9]} 20... Qg6 {[%clk
0:02:24.5]} 21. Qh3 {[%clk 0:01:46.2]} 21... Rg8 {[%clk 0:02:20]} 22. Rg3 {[%clk
0:01:44.2]} 22... Qe6 {[%clk 0:02:20.8]} 23. Rgf3 {[%clk 0:01:35.4]} 23... Rg7
{[%clk 0:02:05.9]} 24. Qh5 {[%clk 0:01:36.3]} 24... Qg6 {[%clk 0:01:57.3]} 25.
Qxg6 {[%clk 0:01:30.2]} 25... fxg6 {[%clk 0:01:57.9]} 26. Rf7 {[%clk 0:01:30]}
26... Rxf7 {[%clk 0:01:56.9]} 27. Rxf7 {[%clk 0:01:30.1]} 27... Re8 {[%clk
0:01:58.8]} 28. Kf2 {[%clk 0:01:24.6]} 28... Kg8 {[%clk 0:02:00.1]} 29. Rf3
{[%clk 0:01:25.7]} 29... Rf8 {[%clk 0:01:56.8]} 30. Ke3 {[%clk 0:01:22.7]} 30...
Rxf3+ {[%clk 0:01:57.2]} 31. gxf3 {[%clk 0:01:24.6]} 31... Kf7 {[%clk
0:01:58.1]} 32. a4 {[%clk 0:01:19.1]} 32... b6 {[%clk 0:01:56.2]} 33. Nb5 {[%clk
0:01:10.2]} 33... Nxb5 {[%clk 0:01:51.5]} 34. axb5 {[%clk 0:01:12.1]} 34... Ke6
{[%clk 0:01:47.6]} 35. Kf4 {[%clk 0:01:11.2]} 35... h6 {[%clk 0:01:49]} 36. Kg4
{[%clk 0:01:07.8]} 36... Kf7 {[%clk 0:01:48.2]} 37. h4 {[%clk 0:01:05.2]} 37...
e6 {[%clk 0:01:49.1]} 38. f4 {[%clk 0:00:57.4]} 38... Kg7 {[%clk 0:01:49.9]} 39.
h5 {[%clk 0:00:42]} 39... gxh5+ {[%clk 0:01:34.2]} 40. Kxh5 {[%clk 0:00:43.9]}
40... Kh7 {[%clk 0:01:36.1]} 41. Kh4 {[%clk 0:00:20.8]} 41... Kg6 {[%clk
0:01:37.4]} 42. Kg4 {[%clk 0:00:22.3]} 42... h5+ {[%clk 0:01:30.6]} 43. Kh4
{[%clk 0:00:23.8]} 43... Kf5 {[%clk 0:01:32.5]} 44. Kxh5 {[%clk 0:00:24.2]}
44... Kxf4 {[%clk 0:01:26]} 45. Kg6 {[%clk 0:00:25.4]} 45... Ke3 {[%clk
0:01:27.6]} 46. Kf6 {[%clk 0:00:26.7]} 46... Kxd4 {[%clk 0:01:29.5]} 47. Kxe6
{[%clk 0:00:28.1]} 47... Kc4 {[%clk 0:01:23.8]} 48. Kd6 {[%clk 0:00:21.3]} 48...
d4 {[%clk 0:01:25.7]} 49. e6 {[%clk 0:00:22.7]} 49... d3 {[%clk 0:01:27.6]} 50.
e7 {[%clk 0:00:24.6]} 50... d2 {[%clk 0:01:29.4]} 51. e8=Q {[%clk 0:00:26.5]}
51... d1=Q+ {[%clk 0:01:31.3]} 52. Kc7 {[%clk 0:00:28.4]} 52... Qd5 {[%clk
0:01:24.9]} 53. Qc6+ {[%clk 0:00:28.3]} 53... Qc5 {[%clk 0:01:15.8]} 54. Kb7
{[%clk 0:00:25.4]} 54... Kb4 {[%clk 0:01:15.5]} 55. Kxa7 {[%clk 0:00:22.5]}
55... Qxb5 {[%clk 0:01:14.5]} 56. Qc3+ {[%clk 0:00:22.9]} 1-0

[Event "*** Titled Tuesday Blitz"]
[Site "Chess.com"]
[Date "2018.09.04"]
[Round "2"]
[White "chess_rehab"]
[Black "novocane"]
[Result "0-1"]
[WhiteElo "2235"]
[BlackElo "2168"]
[TimeControl "180+2"]
[EndTime "13:56:44 PDT"]
[Termination "novocane won by checkmate"]

1. e4 {[%clk 0:03:01.9]} 1... c5 {[%clk 0:02:58.8]} 2. Nf3 {[%clk 0:03:02.9]}
2... Nc6 {[%clk 0:02:57.2]} 3. d4 {[%clk 0:03:03.6]} 3... cxd4 {[%clk 0:02:57]}
4. Nxd4 {[%clk 0:03:05.5]} 4... e5 {[%clk 0:02:56.4]} 5. Nb5 {[%clk 0:03:06.2]}
5... d6 {[%clk 0:02:53.5]} 6. N1c3 {[%clk 0:03:07]} 6... a6 {[%clk 0:02:53.3]}
7. Na3 {[%clk 0:03:08.2]} 7... Be7 {[%clk 0:02:54]} 8. Nc4 {[%clk 0:02:56.9]}
8... b5 {[%clk 0:02:50.9]} 9. Ne3 {[%clk 0:02:53.9]} 9... Nf6 {[%clk 0:02:52.4]}
10. Ned5 {[%clk 0:02:28]} 10... O-O {[%clk 0:02:41.1]} 11. Nxf6+ {[%clk
0:02:20.2]} 11... Bxf6 {[%clk 0:02:39.8]} 12. Nd5 {[%clk 0:02:21.2]} 12... Bg5
{[%clk 0:02:40.5]} 13. c3 {[%clk 0:02:00.1]} 13... Be6 {[%clk 0:02:35.4]} 14.
Bd3 {[%clk 0:01:52.1]} 14... Bxc1 {[%clk 0:02:29.7]} 15. Rxc1 {[%clk 0:01:49.8]}
15... Bxd5 {[%clk 0:02:18.5]} 16. exd5 {[%clk 0:01:51.7]} 16... Ne7 {[%clk
0:02:20.1]} 17. O-O {[%clk 0:01:52.6]} 17... f5 {[%clk 0:02:16.8]} 18. a4 {[%clk
0:01:44.5]} 18... Rb8 {[%clk 0:01:59.7]} 19. axb5 {[%clk 0:01:44]} 19... axb5
{[%clk 0:01:58.9]} 20. Qb3 {[%clk 0:01:45.5]} 20... Qb6 {[%clk 0:01:47.4]} 21.
Kh1 {[%clk 0:01:38.9]} 21... e4 {[%clk 0:01:35.8]} 22. Be2 {[%clk 0:01:37.3]}
22... Kh8 {[%clk 0:01:25.1]} 23. Qd1 {[%clk 0:01:16.6]} 23... Ng6 {[%clk
0:01:09.9]} 24. f4 {[%clk 0:01:07.6]} 24... Qe3 {[%clk 0:00:59.3]} 25. g3 {[%clk
0:01:00.7]} 25... Ne7 {[%clk 0:00:53.3]} 26. c4 {[%clk 0:00:57.6]} 26... bxc4
{[%clk 0:00:50.9]} 27. Rc3 {[%clk 0:00:58.4]} 27... Qb6 {[%clk 0:00:43.1]} 28.
Rxc4 {[%clk 0:00:49.8]} 28... Qxb2 {[%clk 0:00:42.3]} 29. Rc7 {[%clk 0:00:49.4]}
29... Nxd5 {[%clk 0:00:39.6]} 30. Rc2 {[%clk 0:00:41.3]} 30... Qb7 {[%clk
0:00:21.4]} 31. Qd4 {[%clk 0:00:42.2]} 31... Nf6 {[%clk 0:00:18.3]} 32. Qxd6
{[%clk 0:00:40.6]} 32... Rfd8 {[%clk 0:00:18.7]} 33. Qe5 {[%clk 0:00:41.4]}
33... Ng4 {[%clk 0:00:14.6]} 34. Bxg4 {[%clk 0:00:41.9]} 34... fxg4 {[%clk
0:00:15.2]} 35. Re2 {[%clk 0:00:41.5]} 35... e3+ {[%clk 0:00:15.3]} 36. Rg2
{[%clk 0:00:43]} 36... Rd2 {[%clk 0:00:15]} 37. Rg1 {[%clk 0:00:43]} 37... e2
{[%clk 0:00:15.2]} 38. Qe3 {[%clk 0:00:40.2]} 38... Rbd8 {[%clk 0:00:15.8]} 39.
f5 {[%clk 0:00:40.4]} 39... Qf3 {[%clk 0:00:14.1]} 40. Qxf3 {[%clk 0:00:37.8]}
40... gxf3 {[%clk 0:00:15.1]} 41. Rf2 {[%clk 0:00:39.4]} 41... Rd1 {[%clk
0:00:16.3]} 42. Rxf3 {[%clk 0:00:38.5]} 42... Rxg1+ {[%clk 0:00:17]} 43. Kxg1
{[%clk 0:00:39.6]} 43... e1=Q+ {[%clk 0:00:18.3]} 44. Kg2 {[%clk 0:00:41.1]}
44... Qe2+ {[%clk 0:00:19.5]} 45. Rf2 {[%clk 0:00:42.4]} 45... Qe4+ {[%clk
0:00:20.3]} 46. Kh3 {[%clk 0:00:43.6]} 46... Rf8 {[%clk 0:00:20.7]} 47. g4
{[%clk 0:00:43.6]} 47... h5 {[%clk 0:00:21.6]} 48. g5 {[%clk 0:00:43.5]} 48...
Rxf5 {[%clk 0:00:22.3]} 49. Kg3 {[%clk 0:00:40.6]} 49... Qg4# {[%clk 0:00:22.2]}
0-1

[Event "*** Titled Tuesday Blitz"]
[Site "Chess.com"]
[Date "2018.09.04"]
[Round "2"]
[White "Hamisandwich"]
[Black "lhavas"]
[Result "1-0"]
[WhiteElo "2487"]
[BlackElo "2314"]
[TimeControl "180+2"]
[EndTime "13:56:47 PDT"]
[Termination "Hamisandwich won by resignation"]

1. Nf3 {[%clk 0:03:01.5]} 1... Nf6 {[%clk 0:03:00.4]} 2. g3 {[%clk 0:03:01.9]}
2... g6 {[%clk 0:03:01.8]} 3. b3 {[%clk 0:03:02]} 3... Bg7 {[%clk 0:03:03.7]} 4.
Bb2 {[%clk 0:02:58.9]} 4... O-O {[%clk 0:03:04.7]} 5. Bg2 {[%clk 0:03:00.2]}
5... d6 {[%clk 0:03:05.1]} 6. d4 {[%clk 0:03:00.2]} 6... Nbd7 {[%clk 0:03:04.9]}
7. O-O {[%clk 0:03:01.6]} 7... c6 {[%clk 0:03:00.8]} 8. c4 {[%clk 0:03:01.9]}
8... Qc7 {[%clk 0:03:01.6]} 9. Nc3 {[%clk 0:03:02.7]} 9... Re8 {[%clk
0:02:58.4]} 10. Rc1 {[%clk 0:03:03.2]} 10... e5 {[%clk 0:02:58]} 11. Qc2 {[%clk
0:02:59.9]} 11... exd4 {[%clk 0:02:54.3]} 12. Nxd4 {[%clk 0:03:01.8]} 12... Nc5
{[%clk 0:02:54.9]} 13. Rcd1 {[%clk 0:02:56.5]} 13... a5 {[%clk 0:02:55.1]} 14.
h3 {[%clk 0:02:52.5]} 14... Bd7 {[%clk 0:02:48.6]} 15. e3 {[%clk 0:02:48.9]}
15... Rad8 {[%clk 0:02:49]} 16. Rd2 {[%clk 0:02:49.8]} 16... Ne6 {[%clk
0:02:38.5]} 17. Nce2 {[%clk 0:02:28.3]} 17... Ng5 {[%clk 0:02:30.3]} 18. Nf4
{[%clk 0:02:25.7]} 18... Nge4 {[%clk 0:02:22.2]} 19. Rdd1 {[%clk 0:02:25.1]}
19... Qc8 {[%clk 0:02:16.9]} 20. Kh2 {[%clk 0:02:25.3]} 20... h5 {[%clk
0:02:15]} 21. f3 {[%clk 0:02:16.5]} 21... Ng5 {[%clk 0:02:10.3]} 22. h4 {[%clk
0:02:15.9]} 22... Ne6 {[%clk 0:02:07.2]} 23. Ndxe6 {[%clk 0:02:12.1]} 23... Bxe6
{[%clk 0:02:08]} 24. Nxe6 {[%clk 0:02:12]} 24... Qxe6 {[%clk 0:02:08]} 25. e4
{[%clk 0:02:11.5]} 25... Nd7 {[%clk 0:01:54.9]} 26. Bxg7 {[%clk 0:01:59.2]}
26... Kxg7 {[%clk 0:01:55.6]} 27. Rd2 {[%clk 0:02:00.2]} 27... Qf6 {[%clk
0:01:50.6]} 28. f4 {[%clk 0:01:48.8]} 28... Nc5 {[%clk 0:01:44.6]} 29. Rfd1
{[%clk 0:01:49]} 29... Kh7 {[%clk 0:01:36.1]} 30. Rd4 {[%clk 0:01:45.8]} 30...
Ne6 {[%clk 0:01:30.2]} 31. Rxd6 {[%clk 0:01:43.6]} 31... Rxd6 {[%clk 0:01:24.8]}
32. Rxd6 {[%clk 0:01:45.5]} 32... Qe7 {[%clk 0:01:24.1]} 33. e5 {[%clk
0:01:39.1]} 33... Nxf4 {[%clk 0:01:23.7]} 34. gxf4 {[%clk 0:01:23.3]} 34...
Qxh4+ {[%clk 0:01:24.2]} 35. Kg1 {[%clk 0:01:24.3]} 35... Qxf4 {[%clk
0:00:57.1]} 36. Rf6 {[%clk 0:01:15.1]} 36... Qe3+ {[%clk 0:00:35]} 37. Qf2
{[%clk 0:01:15.2]} 37... Qxf2+ {[%clk 0:00:28.7]} 38. Rxf2 {[%clk 0:01:17.1]}
38... Kg7 {[%clk 0:00:28.9]} 39. Re2 {[%clk 0:01:17.4]} 39... g5 {[%clk
0:00:23.3]} 40. Kf2 {[%clk 0:01:17.5]} 40... Kg6 {[%clk 0:00:23.3]} 41. Be4+
{[%clk 0:01:16.1]} 41... Kg7 {[%clk 0:00:23.7]} 42. Bf5 {[%clk 0:01:17]} 42...
a4 {[%clk 0:00:20.4]} 43. b4 {[%clk 0:01:11.8]} 43... Rd8 {[%clk 0:00:20.1]} 44.
Ke3 {[%clk 0:01:07]} 44... Rd1 {[%clk 0:00:20.2]} 45. Rd2 {[%clk 0:01:04.2]}
45... Re1+ {[%clk 0:00:20.6]} 46. Kd4 {[%clk 0:01:03.6]} 46... Rf1 {[%clk
0:00:19.9]} 47. Bc8 {[%clk 0:01:03.2]} 47... Rf4+ {[%clk 0:00:20]} 48. Kc5
{[%clk 0:01:03.4]} 48... g4 {[%clk 0:00:21.3]} 49. Bxb7 {[%clk 0:01:02.2]} 49...
h4 {[%clk 0:00:21.6]} 50. Bxc6 {[%clk 0:01:02.8]} 50... g3 {[%clk 0:00:22.8]}
51. Bg2 {[%clk 0:00:58.4]} 51... Rf5 {[%clk 0:00:18.3]} 52. Kd6 {[%clk
0:00:53.4]} 52... Rh5 {[%clk 0:00:18.4]} 53. Bh3 {[%clk 0:00:51.3]} 53... Rg5
{[%clk 0:00:17.3]} 54. c5 {[%clk 0:00:49.9]} 54... Rh5 {[%clk 0:00:17.5]} 55. c6
{[%clk 0:00:50.8]} 55... Rh8 {[%clk 0:00:17.9]} 56. c7 {[%clk 0:00:51.7]} 1-0

[Event "*** Titled Tuesday Blitz"]
[Site "Chess.com"]
[Date "2018.09.04"]
[Round "2"]
[White "GadimbayliA"]
[Black "Nakachuk"]
[Result "1/2-1/2"]
[WhiteElo "2667"]
[BlackElo "2706"]
[TimeControl "180+2"]
[EndTime "13:56:48 PDT"]
[Termination "Game drawn by repetition"]

1. e4 {[%clk 0:03:01]} 1... c5 {[%clk 0:03:00.8]} 2. Nf3 {[%clk 0:03:00.7]} 2...
e6 {[%clk 0:03:02.2]} 3. d4 {[%clk 0:03:01.2]} 3... cxd4 {[%clk 0:03:04.1]} 4.
Nxd4 {[%clk 0:03:03.1]} 4... Nc6 {[%clk 0:03:05.7]} 5. Nc3 {[%clk 0:03:03.6]}
5... Qc7 {[%clk 0:03:07.3]} 6. Be3 {[%clk 0:03:04.7]} 6... a6 {[%clk 0:03:08]}
7. f4 {[%clk 0:03:05.9]} 7... b5 {[%clk 0:03:06.5]} 8. Nxc6 {[%clk 0:02:50.4]}
8... Qxc6 {[%clk 0:03:05.2]} 9. Bd3 {[%clk 0:02:51.4]} 9... Bb7 {[%clk
0:03:04.4]} 10. Qd2 {[%clk 0:02:49.7]} 10... Nf6 {[%clk 0:03:00]} 11. O-O-O
{[%clk 0:02:13.1]} 11... Rc8 {[%clk 0:02:39.3]} 12. e5 {[%clk 0:02:08.5]} 12...
b4 {[%clk 0:02:36.8]} 13. exf6 {[%clk 0:01:29.9]} 13... bxc3 {[%clk 0:02:37.3]}
14. Qxc3 {[%clk 0:01:31.3]} 14... Qxc3 {[%clk 0:02:36.1]} 15. bxc3 {[%clk
0:01:33.2]} 15... gxf6 {[%clk 0:02:32.8]} 16. Bd4 {[%clk 0:01:34.4]} 16... Be7
{[%clk 0:02:24]} 17. Rhg1 {[%clk 0:01:33.9]} 17... h5 {[%clk 0:02:17.4]} 18. Kd2
{[%clk 0:01:32.4]} 18... Rg8 {[%clk 0:02:16.1]} 19. g3 {[%clk 0:01:32.4]} 19...
a5 {[%clk 0:01:57.7]} 20. Rb1 {[%clk 0:01:30.9]} 20... Bc6 {[%clk 0:01:59]} 21.
Ba6 {[%clk 0:01:28.7]} 21... Ra8 {[%clk 0:01:37.7]} 22. Bb7 {[%clk 0:01:28]}
22... Bxb7 {[%clk 0:01:39.1]} 23. Rxb7 {[%clk 0:01:29.9]} 23... f5 {[%clk
0:01:39.3]} 24. Rgb1 {[%clk 0:01:25.1]} 24... Bd6 {[%clk 0:01:39.8]} 25. R1b6
{[%clk 0:01:20]} 25... Ke7 {[%clk 0:01:32.5]} 26. Bf6+ {[%clk 0:01:09.3]} 26...
Kxf6 {[%clk 0:01:33.3]} 27. Rxd6 {[%clk 0:01:11.2]} 27... h4 {[%clk 0:01:34.7]}
28. Rdxd7 {[%clk 0:01:11.4]} 28... Rg7 {[%clk 0:01:26.2]} 29. Ke2 {[%clk
0:01:06.6]} 29... hxg3 {[%clk 0:01:21.8]} 30. hxg3 {[%clk 0:01:08.5]} 30... Rh8
{[%clk 0:01:18.5]} 31. c4 {[%clk 0:01:07.3]} 31... Rh2+ {[%clk 0:01:17.2]} 32.
Kd1 {[%clk 0:01:07.8]} 32... Rhh7 {[%clk 0:01:05.7]} 33. c5 {[%clk 0:01:01.4]}
33... Rxg3 {[%clk 0:01:06]} 34. c6 {[%clk 0:01:00.5]} 34... Rc3 {[%clk
0:00:36.8]} 35. c7 {[%clk 0:00:58.3]} 35... Rc6 {[%clk 0:00:28.6]} 36. Kc1
{[%clk 0:00:28]} 36... Rh2 {[%clk 0:00:21.2]} 37. Rd2 {[%clk 0:00:14]} 37...
Rh1+ {[%clk 0:00:21.4]} 38. Kb2 {[%clk 0:00:14.8]} 38... Rh3 {[%clk 0:00:21.6]}
39. a3 {[%clk 0:00:13.9]} 39... Rhc3 {[%clk 0:00:21.9]} 40. Rd7 {[%clk
0:00:14.9]} 40... Rxc2+ {[%clk 0:00:23.1]} 41. Kb1 {[%clk 0:00:15.8]} 41... Rc1+
{[%clk 0:00:24.1]} 42. Kb2 {[%clk 0:00:17.1]} 42... R1c2+ {[%clk 0:00:25]} 43.
Kb3 {[%clk 0:00:18.6]} 43... R2c3+ {[%clk 0:00:26.1]} 44. Ka4 {[%clk 0:00:19.9]}
44... R3c4+ {[%clk 0:00:26.1]} 45. Kxa5 {[%clk 0:00:21.4]} 45... R4c5+ {[%clk
0:00:27.4]} 46. Ka4 {[%clk 0:00:20.4]} 46... Rc4+ {[%clk 0:00:28.5]} 47. Kb5
{[%clk 0:00:19.7]} 47... R4c5+ {[%clk 0:00:29.6]} 48. Kb4 {[%clk 0:00:21.2]}
48... Rc4+ {[%clk 0:00:31.5]} 49. Ka5 {[%clk 0:00:22.7]} 49... R4c5+ {[%clk
0:00:32]} 50. Ka4 {[%clk 0:00:14.2]} 50... Rc4+ {[%clk 0:00:32.7]} 51. Ka5
{[%clk 0:00:14]} 1/2-1/2

[Event "*** Titled Tuesday Blitz"]
[Site "Chess.com"]
[Date "2018.09.04"]
[Round "2"]
[White "Polish_fighter3000"]
[Black "Fins0905"]
[Result "1-0"]
[WhiteElo "2913"]
[BlackElo "2592"]
[TimeControl "180+2"]
[EndTime "13:56:49 PDT"]
[Termination "Polish_fighter3000 won by resignation"]

1. e4 {[%clk 0:03:01.9]} 1... d5 {[%clk 0:03:00.4]} 2. exd5 {[%clk 0:03:01.6]}
2... Qxd5 {[%clk 0:03:01.6]} 3. Nc3 {[%clk 0:03:02.8]} 3... Qd8 {[%clk
0:03:02.3]} 4. d4 {[%clk 0:03:03.7]} 4... Nf6 {[%clk 0:03:03.3]} 5. Bf4 {[%clk
0:03:01.9]} 5... c6 {[%clk 0:03:02.4]} 6. Qd2 {[%clk 0:02:59]} 6... Bf5 {[%clk
0:03:02]} 7. O-O-O {[%clk 0:02:59.3]} 7... e6 {[%clk 0:03:03.3]} 8. Nf3 {[%clk
0:02:50.9]} 8... Bb4 {[%clk 0:03:02.3]} 9. Bd3 {[%clk 0:02:41.4]} 9... Nd5
{[%clk 0:02:49]} 10. Bxf5 {[%clk 0:02:36.6]} 10... Nxc3 {[%clk 0:02:47.6]} 11.
Qe3 {[%clk 0:02:28.4]} 11... Nd5 {[%clk 0:02:21.5]} 12. Qe4 {[%clk 0:01:55.1]}
12... Nxf4 {[%clk 0:02:15.9]} 13. Qxf4 {[%clk 0:01:56.5]} 13... exf5 {[%clk
0:02:01.4]} 14. d5 {[%clk 0:01:57.8]} 14... Bd6 {[%clk 0:01:54]} 15. Rhe1+
{[%clk 0:01:55.2]} 15... Kf8 {[%clk 0:01:52.8]} 16. Qxf5 {[%clk 0:01:56.2]}
16... c5 {[%clk 0:01:28.5]} 17. Ng5 {[%clk 0:01:55.4]} 17... Qd7 {[%clk
0:01:16.9]} 18. Ne6+ {[%clk 0:01:01.1]} 18... Kg8 {[%clk 0:01:14.1]} 19. Re4
{[%clk 0:01:02.5]} 19... Na6 {[%clk 0:00:48.8]} 20. Nxg7 {[%clk 0:00:54.7]}
20... Qxf5 {[%clk 0:00:40.1]} 21. Nxf5 {[%clk 0:00:56.6]} 21... Rd8 {[%clk
0:00:39.6]} 22. Rde1 {[%clk 0:00:51.2]} 22... h5 {[%clk 0:00:25.3]} 23. c4
{[%clk 0:00:23.6]} 23... Kh7 {[%clk 0:00:20.6]} 24. Nxd6 {[%clk 0:00:23.9]}
24... Rxd6 {[%clk 0:00:21.7]} 25. Re7 {[%clk 0:00:25.3]} 25... Kg6 {[%clk
0:00:19.7]} 26. Rxb7 {[%clk 0:00:24.3]} 26... Nb4 {[%clk 0:00:21.2]} 27. Re3
{[%clk 0:00:22.9]} 27... h4 {[%clk 0:00:17.2]} 28. a3 {[%clk 0:00:22.6]} 28...
Na6 {[%clk 0:00:14.2]} 29. Rxa7 {[%clk 0:00:23.4]} 29... Rb8 {[%clk 0:00:15.3]}
30. b3 {[%clk 0:00:24.5]} 30... Rdb6 {[%clk 0:00:10.2]} 31. Kb2 {[%clk
0:00:24.4]} 31... R8b7 {[%clk 0:00:10.4]} 32. Rxb7 {[%clk 0:00:24.4]} 32... Rxb7
{[%clk 0:00:11.7]} 33. Kc3 {[%clk 0:00:25.8]} 33... Nc7 {[%clk 0:00:12.3]} 34.
b4 {[%clk 0:00:26.6]} 34... Na6 {[%clk 0:00:11]} 35. b5 {[%clk 0:00:27.1]} 35...
Nb8 {[%clk 0:00:11.5]} 36. a4 {[%clk 0:00:25]} 36... Ra7 {[%clk 0:00:12.9]} 37.
Kb3 {[%clk 0:00:26.1]} 37... Nd7 {[%clk 0:00:14.2]} 38. Re7 {[%clk 0:00:27]}
38... Kf6 {[%clk 0:00:14.1]} 39. d6 {[%clk 0:00:28.3]} 39... Kg6 {[%clk
0:00:05.8]} 40. h3 {[%clk 0:00:23.7]} 40... Kf6 {[%clk 0:00:05.6]} 41. g3 {[%clk
0:00:24.3]} 41... hxg3 {[%clk 0:00:06.5]} 42. fxg3 {[%clk 0:00:26.2]} 42... Kg6
{[%clk 0:00:07.7]} 43. a5 {[%clk 0:00:23.6]} 43... f5 {[%clk 0:00:06.9]} 44. b6
{[%clk 0:00:21.5]} 44... Rb7 {[%clk 0:00:07.6]} 45. Ka4 {[%clk 0:00:21.9]} 45...
Nxb6+ {[%clk 0:00:07.5]} 46. axb6 {[%clk 0:00:19.6]} 46... Rxb6 {[%clk
0:00:09.4]} 47. d7 {[%clk 0:00:21]} 47... Rd6 {[%clk 0:00:08.1]} 48. Re6+ {[%clk
0:00:22.1]} 48... Rxe6 {[%clk 0:00:07.8]} 49. d8=Q {[%clk 0:00:23.4]} 49... Re4
{[%clk 0:00:09]} 50. Kb5 {[%clk 0:00:24]} 1-0

[Event "*** Titled Tuesday Blitz"]
[Site "Chess.com"]
[Date "2018.09.04"]
[Round "2"]
[White "JammyDodger91"]
[Black "Mikhail_Golubev"]
[Result "0-1"]
[WhiteElo "2395"]
[BlackElo "2423"]
[TimeControl "180+2"]
[EndTime "13:56:52 PDT"]
[Termination "Mikhail_Golubev won by resignation"]

1. e4 {[%clk 0:03:01.9]} 1... c5 {[%clk 0:02:59.3]} 2. Nf3 {[%clk 0:03:03.1]}
2... d6 {[%clk 0:02:59.9]} 3. d4 {[%clk 0:03:04.7]} 3... cxd4 {[%clk 0:03:00.8]}
4. Nxd4 {[%clk 0:03:06.6]} 4... Nf6 {[%clk 0:03:01.3]} 5. Nc3 {[%clk 0:03:08]}
5... g6 {[%clk 0:03:02.1]} 6. Be3 {[%clk 0:03:07.8]} 6... Bg7 {[%clk 0:03:02.7]}
7. f3 {[%clk 0:03:09.2]} 7... a6 {[%clk 0:03:03.3]} 8. Qd2 {[%clk 0:03:08.6]}
8... Nbd7 {[%clk 0:03:03.6]} 9. O-O-O {[%clk 0:02:49.8]} 9... b5 {[%clk
0:03:00.6]} 10. g4 {[%clk 0:02:46]} 10... Bb7 {[%clk 0:02:50.9]} 11. h4 {[%clk
0:02:41.3]} 11... b4 {[%clk 0:02:45.2]} 12. Na4 {[%clk 0:02:41]} 12... Qa5
{[%clk 0:02:38.8]} 13. b3 {[%clk 0:02:41.7]} 13... Nc5 {[%clk 0:01:38.1]} 14. a3
{[%clk 0:02:42.1]} 14... Nxa4 {[%clk 0:01:38.4]} 15. axb4 {[%clk 0:02:42.2]}
15... Qc7 {[%clk 0:01:35.7]} 16. bxa4 {[%clk 0:02:41]} 16... O-O {[%clk
0:00:58.8]} 17. Bd3 {[%clk 0:01:55.1]} 17... h5 {[%clk 0:00:44.6]} 18. gxh5
{[%clk 0:01:31.7]} 18... Nxh5 {[%clk 0:00:43.7]} 19. Rhg1 {[%clk 0:01:31.9]}
19... Rfc8 {[%clk 0:00:25.6]} 20. Rg5 {[%clk 0:00:58.7]} 20... Qc3 {[%clk
0:00:24.9]} 21. Qxc3 {[%clk 0:00:59.1]} 21... Rxc3 {[%clk 0:00:25.5]} 22. Nb3
{[%clk 0:00:44.6]} 22... Bc6 {[%clk 0:00:20.3]} 23. Bd4 {[%clk 0:00:21.4]} 23...
Bxa4 {[%clk 0:00:18.1]} 24. Bxc3 {[%clk 0:00:20]} 24... Bxc3 {[%clk 0:00:18.9]}
25. Rdg1 {[%clk 0:00:20.8]} 25... Bxb3 {[%clk 0:00:16.4]} 26. cxb3 {[%clk
0:00:22.7]} 26... Kf8 {[%clk 0:00:15.5]} 27. Bc4 {[%clk 0:00:19.5]} 27... Bxb4
{[%clk 0:00:14.8]} 28. Kc2 {[%clk 0:00:20.1]} 28... Bc5 {[%clk 0:00:14.5]} 29.
Ra1 {[%clk 0:00:16.8]} 29... a5 {[%clk 0:00:13.3]} 30. e5 {[%clk 0:00:17.6]}
30... dxe5 {[%clk 0:00:09.2]} 31. Rxe5 {[%clk 0:00:19.5]} 31... Bb4 {[%clk
0:00:09.9]} 32. Rb5 {[%clk 0:00:18.6]} 32... Rc8 {[%clk 0:00:10.2]} 33. Raxa5
{[%clk 0:00:19.1]} 33... Bxa5 {[%clk 0:00:10.3]} 34. Rxa5 {[%clk 0:00:21]} 34...
Ng3 {[%clk 0:00:09.2]} 35. Kc3 {[%clk 0:00:20.5]} 35... Nf5 {[%clk 0:00:09.7]}
36. h5 {[%clk 0:00:19.5]} 36... Nd6 {[%clk 0:00:07.5]} 37. hxg6 {[%clk
0:00:17.8]} 37... fxg6 {[%clk 0:00:08.3]} 38. Kd4 {[%clk 0:00:19.1]} 38... Kg7
{[%clk 0:00:06.7]} 39. Bd5 {[%clk 0:00:18.9]} 39... Rc1 {[%clk 0:00:07]} 40. b4
{[%clk 0:00:19.2]} 40... Rd1+ {[%clk 0:00:07]} 41. Kc5 {[%clk 0:00:20.5]} 41...
Rc1+ {[%clk 0:00:07.8]} 42. Kb6 {[%clk 0:00:21.9]} 42... Rb1 {[%clk 0:00:08.5]}
43. b5 {[%clk 0:00:22]} 43... Kf6 {[%clk 0:00:09.3]} 44. Bc6 {[%clk 0:00:23.1]}
44... Nc4+ {[%clk 0:00:09]} 45. Ka6 {[%clk 0:00:23.9]} 45... Nxa5 {[%clk
0:00:09.4]} 46. Kxa5 {[%clk 0:00:25.8]} 46... Ke5 {[%clk 0:00:10]} 47. b6 {[%clk
0:00:26.4]} 47... Kd6 {[%clk 0:00:10.2]} 48. Bb5 {[%clk 0:00:27.8]} 48... Ra1+
{[%clk 0:00:08.6]} 49. Ba4 {[%clk 0:00:29.2]} 49... Rb1 {[%clk 0:00:08]} 50. Bb5
{[%clk 0:00:29.8]} 50... Kc5 {[%clk 0:00:08.1]} 51. Ba4 {[%clk 0:00:31.1]} 0-1